[Event "Early-Titled-Tuesday-Blitz-January-23-2024"]
[Site "Chess.com"]
[Date "2024.01.23"]
[Round "5"]
[White "cthulhuuu"]
[Black "Lady_Nika"]
[Result "0-1"]
[WhiteElo "2440"]
[BlackElo "2569"]
[TimeControl "180+1"]
[EndTime "8:55:24 PST"]
[Termination "Lady_Nika won on time"]

1. e4 {[%clk 0:03:00.1]} 1... e6 {[%clk 0:02:59.8]} 2. d3 {[%clk 0:03:00.2]}
2... d5 {[%clk 0:03:00]} 3. Nd2 {[%clk 0:03:00.8]} 3... Nf6 {[%clk 0:03:00.3]}
4. Ngf3 {[%clk 0:03:01.5]} 4... c5 {[%clk 0:03:00.6]} 5. g3 {[%clk 0:03:01.8]}
5... Nc6 {[%clk 0:03:01.1]} 6. Bg2 {[%clk 0:03:02.3]} 6... d4 {[%clk 0:03:01.6]}
7. O-O {[%clk 0:02:59.4]} 7... e5 {[%clk 0:03:01.7]} 8. Nc4 {[%clk 0:02:59.6]}
8... Bg4 {[%clk 0:03:00.9]} 9. a4 {[%clk 0:02:57.9]} 9... Bd6 {[%clk 0:03:00.5]}
10. h3 {[%clk 0:02:57.8]} 10... Bxf3 {[%clk 0:03:00.7]} 11. Qxf3 {[%clk
0:02:58.1]} 11... O-O {[%clk 0:02:59.1]} 12. Qe2 {[%clk 0:02:50.8]} 12... Bc7
{[%clk 0:02:51.3]} 13. Bd2 {[%clk 0:02:48.9]} 13... Nd7 {[%clk 0:02:50.8]} 14.
f4 {[%clk 0:02:43.2]} 14... f6 {[%clk 0:02:45.2]} 15. h4 {[%clk 0:02:43.2]}
15... Qe7 {[%clk 0:02:44.3]} 16. Bh3 {[%clk 0:02:42.3]} 16... b6 {[%clk
0:02:42.9]} 17. Qg4 {[%clk 0:02:31.9]} 17... Rad8 {[%clk 0:02:31.5]} 18. h5
{[%clk 0:02:26.9]} 18... Kh8 {[%clk 0:02:25.4]} 19. Kg2 {[%clk 0:02:12.6]} 19...
a6 {[%clk 0:02:19.8]} 20. Rh1 {[%clk 0:02:08.2]} 20... b5 {[%clk 0:02:19.1]} 21.
axb5 {[%clk 0:02:04]} 21... axb5 {[%clk 0:02:19.1]} 22. Na5 {[%clk 0:01:44.8]}
22... Nxa5 {[%clk 0:02:13.6]} 23. Bxa5 {[%clk 0:01:44.7]} 23... Nb6 {[%clk
0:02:10.4]} 24. h6 {[%clk 0:01:37.4]} 24... gxh6 {[%clk 0:02:08.6]} 25. Qe6
{[%clk 0:01:30]} 25... Qg7 {[%clk 0:01:16.4]} 26. Bxb6 {[%clk 0:01:18.9]} 26...
exf4 {[%clk 0:00:43.9]} 27. Bxc7 {[%clk 0:01:08.9]} 27... Qxg3+ {[%clk
0:00:41.7]} 28. Kf1 {[%clk 0:01:09]} 28... Qf3+ {[%clk 0:00:41.7]} 29. Ke1
{[%clk 0:01:09.1]} 29... Qxh1+ {[%clk 0:00:39.3]} 30. Bf1 {[%clk 0:01:04.1]}
30... Qh4+ {[%clk 0:00:36.3]} 31. Kd1 {[%clk 0:01:00.6]} 31... Ra8 {[%clk
0:00:33.5]} 32. Ra6 {[%clk 0:00:34]} 32... Rxa6 {[%clk 0:00:32.1]} 33. Qxa6
{[%clk 0:00:34.9]} 33... Qf2 {[%clk 0:00:24.7]} 34. Bh3 {[%clk 0:00:19.8]} 34...
f3 {[%clk 0:00:20.5]} 35. Ba5 {[%clk 0:00:10.3]} 35... Qe2+ {[%clk 0:00:18.5]}
36. Kc1 {[%clk 0:00:10.6]} 36... Qh2 {[%clk 0:00:16.6]} 37. Qd6 {[%clk
0:00:10.1]} 37... Qxd6 {[%clk 0:00:16.2]} 0-1

[Event "Early-Titled-Tuesday-Blitz-January-23-2024"]
[Site "Chess.com"]
[Date "2024.01.23"]
[Round "5"]
[White "chess123456s"]
[Black "ChessLebaneseSalah"]
[Result "1-0"]
[WhiteElo "2554"]
[BlackElo "2393"]
[TimeControl "180+1"]
[EndTime "8:55:26 PST"]
[Termination "chess123456s won on time"]

1. d4 {[%clk 0:03:00.9]} 1... d5 {[%clk 0:02:59.7]} 2. Nc3 {[%clk 0:03:01.2]}
2... Nf6 {[%clk 0:02:59.7]} 3. Bf4 {[%clk 0:03:01.3]} 3... e6 {[%clk 0:02:48.5]}
4. Nb5 {[%clk 0:03:01]} 4... Na6 {[%clk 0:02:45.7]} 5. e3 {[%clk 0:03:01.2]}
5... Be7 {[%clk 0:02:44.9]} 6. Nf3 {[%clk 0:03:01.1]} 6... O-O {[%clk 0:02:45]}
7. h4 {[%clk 0:03:01.1]} 7... c6 {[%clk 0:02:40.3]} 8. Nc3 {[%clk 0:03:00.6]}
8... c5 {[%clk 0:02:40.7]} 9. h5 {[%clk 0:02:51.3]} 9... Bd7 {[%clk 0:02:25.2]}
10. Ne5 {[%clk 0:02:50.4]} 10... Be8 {[%clk 0:02:24]} 11. h6 {[%clk 0:02:44.8]}
11... g6 {[%clk 0:02:21.5]} 12. a3 {[%clk 0:02:38.5]} 12... cxd4 {[%clk
0:02:21.5]} 13. exd4 {[%clk 0:02:38.3]} 13... Rc8 {[%clk 0:02:19.2]} 14. Qd2
{[%clk 0:02:35.1]} 14... Qb6 {[%clk 0:02:11]} 15. O-O-O {[%clk 0:02:27]} 15...
Qa5 {[%clk 0:01:48.7]} 16. Kb1 {[%clk 0:01:40.9]} 16... Bxa3 {[%clk 0:01:36.9]}
17. Ne4 {[%clk 0:01:32.6]} 17... Qb6 {[%clk 0:00:37.2]} 18. Nxf6+ {[%clk
0:01:31.5]} 18... Kh8 {[%clk 0:00:37.9]} 19. b3 {[%clk 0:01:21.9]} 19... Bb4
{[%clk 0:00:31]} 20. Qe3 {[%clk 0:01:17.8]} 20... Qa5 {[%clk 0:00:18.6]} 21. Nc4
{[%clk 0:00:49.7]} 21... dxc4 {[%clk 0:00:13.2]} 22. Be5 {[%clk 0:00:45.9]}
22... Bc3 {[%clk 0:00:08.3]} 23. Nd5+ {[%clk 0:00:34.9]} 23... f6 {[%clk
0:00:08.4]} 24. Qxc3 {[%clk 0:00:14.6]} 24... Qxc3 {[%clk 0:00:07.2]} 25. Nxc3
{[%clk 0:00:15.2]} 25... fxe5 {[%clk 0:00:07.6]} 26. Bxc4 {[%clk 0:00:15.2]}
26... exd4 {[%clk 0:00:06.2]} 27. Rxd4 {[%clk 0:00:14.7]} 27... Nb4 {[%clk
0:00:05.4]} 28. f3 {[%clk 0:00:12.9]} 28... b5 {[%clk 0:00:04.7]} 29. Nxb5
{[%clk 0:00:11.5]} 29... Bxb5 {[%clk 0:00:04.5]} 30. Bxb5 {[%clk 0:00:12.4]}
30... Nxc2 {[%clk 0:00:05]} 31. Re4 {[%clk 0:00:12.5]} 31... Na3+ {[%clk
0:00:05]} 32. Kb2 {[%clk 0:00:13.2]} 32... Nxb5 {[%clk 0:00:05.9]} 33. Rxe6
{[%clk 0:00:13.5]} 33... Rfd8 {[%clk 0:00:05.6]} 34. Rhe1 {[%clk 0:00:12.8]}
34... Rd2+ {[%clk 0:00:05.4]} 35. Ka1 {[%clk 0:00:13.5]} 35... Rdd8 {[%clk
0:00:04]} 36. Kb2 {[%clk 0:00:12.3]} 36... a5 {[%clk 0:00:03.3]} 37. R6e5 {[%clk
0:00:11.9]} 37... Nd4 {[%clk 0:00:02.1]} 38. Rxa5 {[%clk 0:00:10.7]} 1-0

[Event "Early-Titled-Tuesday-Blitz-January-23-2024"]
[Site "Chess.com"]
[Date "2024.01.23"]
[Round "5"]
[White "s4p0ud"]
[Black "aghasiyevkamal"]
[Result "1-0"]
[WhiteElo "2510"]
[BlackElo "2620"]
[TimeControl "180+1"]
[EndTime "8:55:27 PST"]
[Termination "s4p0ud won by resignation"]

1. e4 {[%clk 0:02:32.6]} 1... e5 {[%clk 0:02:58.3]} 2. Nf3 {[%clk 0:02:32.2]}
2... Nc6 {[%clk 0:02:58.2]} 3. d4 {[%clk 0:02:32.2]} 3... exd4 {[%clk
0:02:58.2]} 4. Nxd4 {[%clk 0:02:33.1]} 4... Bc5 {[%clk 0:02:57.9]} 5. Nb3 {[%clk
0:02:33.1]} 5... Bb6 {[%clk 0:02:55.6]} 6. Nc3 {[%clk 0:02:32.4]} 6... Nf6
{[%clk 0:02:47.9]} 7. Qe2 {[%clk 0:02:27.9]} 7... O-O {[%clk 0:02:46.7]} 8. Be3
{[%clk 0:02:11.3]} 8... d5 {[%clk 0:02:44.7]} 9. O-O-O {[%clk 0:02:09.4]} 9...
d4 {[%clk 0:02:43.3]} 10. Bg5 {[%clk 0:01:58.8]} 10... dxc3 {[%clk 0:02:13]} 11.
Rxd8 {[%clk 0:01:56]} 11... cxb2+ {[%clk 0:02:10.2]} 12. Kxb2 {[%clk 0:01:54.2]}
12... Rxd8 {[%clk 0:02:10.3]} 13. Bxf6 {[%clk 0:01:48.6]} 13... gxf6 {[%clk
0:02:10.1]} 14. f4 {[%clk 0:01:41.8]} 14... a5 {[%clk 0:02:09.1]} 15. a4 {[%clk
0:01:38.8]} 15... f5 {[%clk 0:02:04.8]} 16. e5 {[%clk 0:01:28.1]} 16... Be6
{[%clk 0:02:04.1]} 17. Qh5 {[%clk 0:01:25.3]} 17... Nd4 {[%clk 0:01:57.1]} 18.
Qg5+ {[%clk 0:01:23.8]} 18... Kf8 {[%clk 0:01:55.6]} 19. Nc1 {[%clk 0:01:17.5]}
19... Nc6 {[%clk 0:01:17.4]} 20. Bd3 {[%clk 0:01:12.5]} 20... Ne7 {[%clk
0:01:05.5]} 21. g4 {[%clk 0:01:08]} 21... Bd4+ {[%clk 0:00:37.2]} 22. Kb1 {[%clk
0:01:07]} 22... Nd5 {[%clk 0:00:35.3]} 23. Ne2 {[%clk 0:00:57.5]} 23... Nc3+
{[%clk 0:00:33]} 24. Nxc3 {[%clk 0:00:56.3]} 24... Bxc3 {[%clk 0:00:33.3]} 25.
gxf5 {[%clk 0:00:53.9]} 25... Bd5 {[%clk 0:00:26]} 26. Rg1 {[%clk 0:00:50]}
26... c5 {[%clk 0:00:23.5]} 27. f6 {[%clk 0:00:46.7]} 27... Ke8 {[%clk
0:00:22.7]} 28. Bb5+ {[%clk 0:00:45.7]} 28... Bc6 {[%clk 0:00:23]} 29. Bxc6+
{[%clk 0:00:44]} 29... bxc6 {[%clk 0:00:23.3]} 30. Qg8+ {[%clk 0:00:43.6]} 30...
Kd7 {[%clk 0:00:23.9]} 31. Rd1+ {[%clk 0:00:44.1]} 31... Bd4 {[%clk 0:00:23]}
32. Qxf7+ {[%clk 0:00:43.2]} 32... Kc8 {[%clk 0:00:23.6]} 33. Qe6+ {[%clk
0:00:40.5]} 33... Kc7 {[%clk 0:00:23.6]} 34. Qe7+ {[%clk 0:00:39.3]} 34... Rd7
{[%clk 0:00:23.6]} 35. Qe6 {[%clk 0:00:22.9]} 35... Rb8+ {[%clk 0:00:23.5]} 36.
Ka2 {[%clk 0:00:22.9]} 36... Rdd8 {[%clk 0:00:13.6]} 37. Rb1 {[%clk 0:00:20.4]}
37... Rb4 {[%clk 0:00:09.6]} 38. Rxb4 {[%clk 0:00:20.1]} 38... axb4 {[%clk
0:00:10.1]} 39. Kb3 {[%clk 0:00:19.4]} 39... Bc3 {[%clk 0:00:09.4]} 40. f7
{[%clk 0:00:19]} 40... Rd1 {[%clk 0:00:09.4]} 41. Qe7+ {[%clk 0:00:16.9]} 41...
Kb6 {[%clk 0:00:09.1]} 42. a5+ {[%clk 0:00:15.4]} 42... Kb5 {[%clk 0:00:08.8]}
43. Qb7+ {[%clk 0:00:15.9]} 43... Kxa5 {[%clk 0:00:09.1]} 44. Qa7+ {[%clk
0:00:16.2]} 44... Kb5 {[%clk 0:00:09.4]} 45. Qa4+ {[%clk 0:00:15.8]} 45... Kb6
{[%clk 0:00:09.4]} 46. f8=Q {[%clk 0:00:15.9]} 1-0

[Event "Early-Titled-Tuesday-Blitz-January-23-2024"]
[Site "Chess.com"]
[Date "2024.01.23"]
[Round "5"]
[White "vedantgoswami"]
[Black "MalyDominator"]
[Result "1-0"]
[WhiteElo "2324"]
[BlackElo "2521"]
[TimeControl "180+1"]
[EndTime "8:55:28 PST"]
[Termination "vedantgoswami won by resignation"]

1. a3 {[%clk 0:03:00.9]} 1... Nf6 {[%clk 0:02:58.5]} 2. h3 {[%clk 0:02:57.9]}
2... g6 {[%clk 0:02:57.6]} 3. g3 {[%clk 0:02:53.8]} 3... Bg7 {[%clk 0:02:51.3]}
4. Bg2 {[%clk 0:02:54.7]} 4... O-O {[%clk 0:02:51.5]} 5. d3 {[%clk 0:02:50.5]}
5... d6 {[%clk 0:02:51]} 6. c4 {[%clk 0:02:46]} 6... Nc6 {[%clk 0:02:50.2]} 7.
Nc3 {[%clk 0:02:46.3]} 7... e5 {[%clk 0:02:49.7]} 8. Nf3 {[%clk 0:02:44]} 8...
Be6 {[%clk 0:02:41.2]} 9. e4 {[%clk 0:02:40.4]} 9... h6 {[%clk 0:02:41.2]} 10.
Be3 {[%clk 0:02:35.2]} 10... a5 {[%clk 0:02:34.3]} 11. Qd2 {[%clk 0:02:31.4]}
11... Kh7 {[%clk 0:02:29.9]} 12. g4 {[%clk 0:02:27.6]} 12... Nd7 {[%clk
0:02:18.8]} 13. O-O-O {[%clk 0:01:56.9]} 13... Nd4 {[%clk 0:02:17.1]} 14. Bxd4
{[%clk 0:01:44.7]} 14... exd4 {[%clk 0:02:15.7]} 15. Ne2 {[%clk 0:01:45.6]}
15... c5 {[%clk 0:02:14.9]} 16. Nf4 {[%clk 0:01:43.2]} 16... b5 {[%clk
0:02:13.9]} 17. cxb5 {[%clk 0:01:38.1]} 17... a4 {[%clk 0:02:09.4]} 18. g5
{[%clk 0:01:35.4]} 18... Qb6 {[%clk 0:02:05.5]} 19. h4 {[%clk 0:01:25.1]} 19...
h5 {[%clk 0:01:58.2]} 20. Qc2 {[%clk 0:01:16.9]} 20... Bb3 {[%clk 0:01:54.6]}
21. Qd2 {[%clk 0:01:13.2]} 21... Qxb5 {[%clk 0:01:54]} 22. Nd5 {[%clk
0:01:12.1]} 22... c4 {[%clk 0:01:51.8]} 23. dxc4 {[%clk 0:01:08.9]} 23... Qxc4+
{[%clk 0:01:51]} 24. Kb1 {[%clk 0:01:06.4]} 24... Nc5 {[%clk 0:01:47.1]} 25. Rc1
{[%clk 0:01:05.2]} 25... Ba2+ {[%clk 0:01:33.2]} 26. Ka1 {[%clk 0:01:00.3]}
26... Nb3+ {[%clk 0:01:25.1]} 27. Kxa2 {[%clk 0:00:59.9]} 27... Nxc1+ {[%clk
0:01:24.9]} 28. Kb1 {[%clk 0:00:55.7]} 28... Qa2+ {[%clk 0:01:19]} 29. Kxc1
{[%clk 0:00:54.3]} 29... Qa1+ {[%clk 0:01:12.2]} 30. Kc2 {[%clk 0:00:53.3]}
30... d3+ {[%clk 0:01:11.6]} 31. Kxd3 {[%clk 0:00:52.2]} 31... Qa2 {[%clk
0:01:11.5]} 32. Nf6+ {[%clk 0:00:49.4]} 32... Bxf6 {[%clk 0:01:04.2]} 33. gxf6
{[%clk 0:00:49.4]} 33... Rac8 {[%clk 0:01:00.2]} 34. Ke3 {[%clk 0:00:34]} 34...
Qb3+ {[%clk 0:00:55.8]} 35. Kf4 {[%clk 0:00:32.8]} 35... Rfe8 {[%clk 0:00:51.1]}
36. Re1 {[%clk 0:00:31.2]} 36... Rc2 {[%clk 0:00:48]} 37. Qxd6 {[%clk
0:00:27.8]} 37... Rxf2 {[%clk 0:00:46.7]} 38. Kg3 {[%clk 0:00:24.8]} 38... Qxb2
{[%clk 0:00:46.6]} 39. Bh3 {[%clk 0:00:22.4]} 39... Kg8 {[%clk 0:00:35]} 40. e5
{[%clk 0:00:20.1]} 40... Rxf3+ {[%clk 0:00:25.3]} 41. Kxf3 {[%clk 0:00:19.3]}
41... Qc3+ {[%clk 0:00:25.9]} 42. Re3 {[%clk 0:00:19]} 42... Qc1 {[%clk
0:00:21.9]} 43. e6 {[%clk 0:00:18.3]} 43... Qh1+ {[%clk 0:00:21.2]} 44. Bg2
{[%clk 0:00:17.7]} 44... Qxh4 {[%clk 0:00:20.7]} 45. exf7+ {[%clk 0:00:16.9]}
45... Kxf7 {[%clk 0:00:21.1]} 46. Qd7+ {[%clk 0:00:16.7]} 46... Kxf6 {[%clk
0:00:21.3]} 47. Qxe8 {[%clk 0:00:15.8]} 47... Qg4+ {[%clk 0:00:21.4]} 48. Kf2
{[%clk 0:00:15.5]} 48... Qf4+ {[%clk 0:00:21.4]} 49. Rf3 {[%clk 0:00:15.5]} 1-0

[Event "Early-Titled-Tuesday-Blitz-January-23-2024"]
[Site "Chess.com"]
[Date "2024.01.23"]
[Round "5"]
[White "VladimirKramnik"]
[Black "Duhless"]
[Result "1-0"]
[WhiteElo "2940"]
[BlackElo "3118"]
[TimeControl "180+1"]
[EndTime "8:55:30 PST"]
[Termination "VladimirKramnik won by checkmate"]

1. e4 {[%clk 0:03:00.9]} 1... e5 {[%clk 0:02:57.1]} 2. Nf3 {[%clk 0:02:59.9]}
2... Nc6 {[%clk 0:02:57.7]} 3. Bc4 {[%clk 0:03:00.1]} 3... Nf6 {[%clk
0:02:57.7]} 4. d3 {[%clk 0:03:00.3]} 4... Be7 {[%clk 0:02:57.4]} 5. O-O {[%clk
0:03:00.2]} 5... O-O {[%clk 0:02:57.5]} 6. Re1 {[%clk 0:02:57.1]} 6... d6 {[%clk
0:02:56.9]} 7. a3 {[%clk 0:02:57.7]} 7... h6 {[%clk 0:02:47.4]} 8. Nbd2 {[%clk
0:02:54.8]} 8... Re8 {[%clk 0:02:45.7]} 9. b4 {[%clk 0:02:51.5]} 9... Bf8 {[%clk
0:02:45.1]} 10. Bb2 {[%clk 0:02:50.8]} 10... a6 {[%clk 0:02:33]} 11. h3 {[%clk
0:02:49.6]} 11... Ne7 {[%clk 0:02:28.2]} 12. d4 {[%clk 0:02:44.3]} 12... Ng6
{[%clk 0:02:27.9]} 13. dxe5 {[%clk 0:02:30.3]} 13... dxe5 {[%clk 0:02:26.1]} 14.
Bf1 {[%clk 0:02:28.6]} 14... b5 {[%clk 0:02:04.8]} 15. c4 {[%clk 0:02:26.6]}
15... c5 {[%clk 0:01:40]} 16. cxb5 {[%clk 0:02:17.5]} 16... axb5 {[%clk
0:01:40.9]} 17. Bxb5 {[%clk 0:02:12]} 17... Bd7 {[%clk 0:01:40.9]} 18. Bxd7
{[%clk 0:02:05.5]} 18... Qxd7 {[%clk 0:01:41.8]} 19. Bc3 {[%clk 0:01:27]} 19...
cxb4 {[%clk 0:01:33.7]} 20. Bxb4 {[%clk 0:01:24.3]} 20... Ra4 {[%clk 0:01:17.9]}
21. Bxf8 {[%clk 0:01:17.2]} 21... Rxf8 {[%clk 0:01:13.7]} 22. Qb3 {[%clk
0:00:47.1]} 22... Rfa8 {[%clk 0:01:09.3]} 23. Nc4 {[%clk 0:00:41.8]} 23... Qe6
{[%clk 0:00:50.9]} 24. Nfd2 {[%clk 0:00:41.2]} 24... Nf4 {[%clk 0:00:49.4]} 25.
Nb6 {[%clk 0:00:33.8]} 25... Rxa3 {[%clk 0:00:32.5]} 26. Rxa3 {[%clk 0:00:27.7]}
26... Rxa3 {[%clk 0:00:31.6]} 27. Qxa3 {[%clk 0:00:28.1]} 27... Qxb6 {[%clk
0:00:32.4]} 28. Nc4 {[%clk 0:00:23.8]} 28... Qd4 {[%clk 0:00:30.8]} 29. Nd6
{[%clk 0:00:13.9]} 29... Nd3 {[%clk 0:00:24.7]} 30. Re3 {[%clk 0:00:13.5]} 30...
Nf4 {[%clk 0:00:15.4]} 31. Qa8+ {[%clk 0:00:11.5]} 31... Kh7 {[%clk 0:00:15.3]}
32. Nxf7 {[%clk 0:00:12.1]} 32... Qd1+ {[%clk 0:00:06.5]} 33. Kh2 {[%clk
0:00:11.6]} 33... Ne2 {[%clk 0:00:07.4]} 34. Rxe2 {[%clk 0:00:10.2]} 34... Qxe2
{[%clk 0:00:07.3]} 35. Qh8+ {[%clk 0:00:10.5]} 35... Kg6 {[%clk 0:00:07.7]} 36.
Nxe5+ {[%clk 0:00:10.8]} 36... Kh5 {[%clk 0:00:08.1]} 37. Qxg7 {[%clk
0:00:10.8]} 37... Qxf2 {[%clk 0:00:02.7]} 38. Qg6+ {[%clk 0:00:09.4]} 38... Kh4
{[%clk 0:00:03.2]} 39. Nf3+ {[%clk 0:00:09.8]} 39... Qxf3 {[%clk 0:00:02.1]} 40.
gxf3 {[%clk 0:00:09.8]} 40... Nh5 {[%clk 0:00:03]} 41. Qg4# {[%clk 0:00:09.2]}
1-0

[Event "Early-Titled-Tuesday-Blitz-January-23-2024"]
[Site "Chess.com"]
[Date "2024.01.23"]
[Round "5"]
[White "Ducke13"]
[Black "ChessBliss09"]
[Result "0-1"]
[WhiteElo "2291"]
[BlackElo "2119"]
[TimeControl "180+1"]
[EndTime "8:55:30 PST"]
[Termination "ChessBliss09 won on time"]

1. d4 {[%clk 0:02:51.7]} 1... Nf6 {[%clk 0:02:59.2]} 2. g3 {[%clk 0:02:51.3]}
2... d5 {[%clk 0:02:59.2]} 3. Nf3 {[%clk 0:02:50.2]} 3... c5 {[%clk 0:02:59.6]}
4. Bg2 {[%clk 0:02:49.7]} 4... Nc6 {[%clk 0:02:59.9]} 5. O-O {[%clk 0:02:50]}
5... e6 {[%clk 0:03:00.5]} 6. c4 {[%clk 0:02:49.6]} 6... dxc4 {[%clk 0:02:59.3]}
7. dxc5 {[%clk 0:02:48.3]} 7... Qxd1 {[%clk 0:02:57.1]} 8. Rxd1 {[%clk
0:02:48.1]} 8... Bxc5 {[%clk 0:02:57.8]} 9. Nbd2 {[%clk 0:02:48]} 9... O-O
{[%clk 0:02:49.7]} 10. Nxc4 {[%clk 0:02:47.5]} 10... b5 {[%clk 0:02:31.9]} 11.
Nfe5 {[%clk 0:02:36.1]} 11... Nxe5 {[%clk 0:02:24.1]} 12. Nxe5 {[%clk
0:02:35.9]} 12... Rb8 {[%clk 0:02:24.5]} 13. Nc6 {[%clk 0:02:25.7]} 13... Rb6
{[%clk 0:02:24.1]} 14. b4 {[%clk 0:02:25.7]} 14... Bxf2+ {[%clk 0:01:45.6]} 15.
Kxf2 {[%clk 0:02:23.7]} 15... Bb7 {[%clk 0:01:45.5]} 16. Ne7+ {[%clk 0:02:09.1]}
16... Kh8 {[%clk 0:01:44.9]} 17. Be3 {[%clk 0:02:09.9]} 17... Ng4+ {[%clk
0:01:43.6]} 18. Kg1 {[%clk 0:01:54.3]} 18... Nxe3 {[%clk 0:01:43.2]} 19. Bxb7
{[%clk 0:01:52.4]} 19... Nxd1 {[%clk 0:01:42.1]} 20. Bf3 {[%clk 0:01:26.2]}
20... Ne3 {[%clk 0:01:38.6]} 21. Rc1 {[%clk 0:01:22.7]} 21... Nc4 {[%clk
0:01:38.4]} 22. a4 {[%clk 0:01:18.6]} 22... a6 {[%clk 0:01:37.1]} 23. a5 {[%clk
0:01:12.4]} 23... Rd6 {[%clk 0:01:37]} 24. Kf2 {[%clk 0:01:06]} 24... Re8 {[%clk
0:01:20.1]} 25. Nc6 {[%clk 0:01:04.6]} 25... Rc8 {[%clk 0:01:20.1]} 26. Ne5
{[%clk 0:00:50.2]} 26... Kg8 {[%clk 0:01:14.6]} 27. Nd3 {[%clk 0:00:46.8]} 27...
f6 {[%clk 0:00:55.5]} 28. Nc5 {[%clk 0:00:46.4]} 28... Kf7 {[%clk 0:00:55.8]}
29. Bb7 {[%clk 0:00:42.5]} 29... Rc7 {[%clk 0:00:50.4]} 30. Bf3 {[%clk
0:00:26.6]} 30... Ne5 {[%clk 0:00:47.8]} 31. Be4 {[%clk 0:00:12.5]} 31... f5
{[%clk 0:00:44.7]} 32. Bg2 {[%clk 0:00:12.3]} 32... Nd7 {[%clk 0:00:44.3]} 33.
Rc3 {[%clk 0:00:08.4]} 33... Nxc5 {[%clk 0:00:43.6]} 34. bxc5 {[%clk 0:00:09.3]}
34... Rd4 {[%clk 0:00:42.8]} 35. c6 {[%clk 0:00:07.8]} 35... e5 {[%clk
0:00:40.7]} 36. Rc5 {[%clk 0:00:06.8]} 36... Kf6 {[%clk 0:00:40.8]} 37. Bd5
{[%clk 0:00:05.4]} 37... Ra4 {[%clk 0:00:34.7]} 38. Bg8 {[%clk 0:00:02.7]} 38...
Rxa5 {[%clk 0:00:32.8]} 39. Bxh7 {[%clk 0:00:03]} 39... Ra1 {[%clk 0:00:29.6]}
40. Bg8 {[%clk 0:00:02.3]} 40... Rd1 {[%clk 0:00:28.6]} 41. Bd5 {[%clk
0:00:02.3]} 41... b4 {[%clk 0:00:27.9]} 42. h4 {[%clk 0:00:01.5]} 42... Rb1
{[%clk 0:00:20.1]} 43. e4 {[%clk 0:00:01.8]} 43... b3 {[%clk 0:00:15.7]} 44. Ra5
{[%clk 0:00:01.6]} 44... b2 {[%clk 0:00:14]} 0-1

[Event "Early-Titled-Tuesday-Blitz-January-23-2024"]
[Site "Chess.com"]
[Date "2024.01.23"]
[Round "5"]
[White "simonachess"]
[Black "Alen_Yeremyann"]
[Result "1-0"]
[WhiteElo "2347"]
[BlackElo "2755"]
[TimeControl "180+1"]
[EndTime "8:55:31 PST"]
[Termination "simonachess won by resignation"]

1. d4 {[%clk 0:03:00.9]} 1... Nf6 {[%clk 0:02:59]} 2. c4 {[%clk 0:03:00.3]} 2...
g6 {[%clk 0:02:59.4]} 3. Nc3 {[%clk 0:02:59.4]} 3... d5 {[%clk 0:03:00]} 4. cxd5
{[%clk 0:02:59.5]} 4... Nxd5 {[%clk 0:03:00.7]} 5. Bd2 {[%clk 0:03:00.1]} 5...
Bg7 {[%clk 0:03:00.2]} 6. e4 {[%clk 0:02:59.9]} 6... Nxc3 {[%clk 0:03:00]} 7.
Bxc3 {[%clk 0:03:00.8]} 7... O-O {[%clk 0:03:00.1]} 8. Nf3 {[%clk 0:03:00.3]}
8... c5 {[%clk 0:03:00.9]} 9. d5 {[%clk 0:03:00.1]} 9... Bxc3+ {[%clk
0:03:01.1]} 10. bxc3 {[%clk 0:03:01]} 10... e5 {[%clk 0:03:01.6]} 11. Qd2 {[%clk
0:02:50.9]} 11... Qd6 {[%clk 0:02:59.2]} 12. h4 {[%clk 0:02:38.8]} 12... Bg4
{[%clk 0:02:58.5]} 13. h5 {[%clk 0:02:37.1]} 13... Bxf3 {[%clk 0:02:57.6]} 14.
gxf3 {[%clk 0:02:36.9]} 14... Qf6 {[%clk 0:02:54.3]} 15. Qe3 {[%clk 0:02:26.5]}
15... Nd7 {[%clk 0:02:53.3]} 16. Bh3 {[%clk 0:02:22]} 16... Nb6 {[%clk
0:02:53.7]} 17. Bf1 {[%clk 0:02:16.1]} 17... Rad8 {[%clk 0:02:50.8]} 18. a4
{[%clk 0:02:15.9]} 18... Nc8 {[%clk 0:02:50.9]} 19. a5 {[%clk 0:02:14.9]} 19...
Nd6 {[%clk 0:02:51.2]} 20. Be2 {[%clk 0:02:13.8]} 20... b6 {[%clk 0:02:47.8]}
21. axb6 {[%clk 0:02:05.8]} 21... axb6 {[%clk 0:02:48.7]} 22. hxg6 {[%clk
0:02:03.2]} 22... fxg6 {[%clk 0:02:47.9]} 23. Kd2 {[%clk 0:02:02.5]} 23... Rf7
{[%clk 0:02:43.5]} 24. Ra6 {[%clk 0:02:00.3]} 24... Rfd7 {[%clk 0:02:37.5]} 25.
Kc2 {[%clk 0:01:57]} 25... Nf7 {[%clk 0:02:31.5]} 26. Qxc5 {[%clk 0:01:47.4]}
26... Rxd5 {[%clk 0:02:05.9]} 27. Qc4 {[%clk 0:01:31.3]} 27... Rd2+ {[%clk
0:02:03.4]} 28. Kb3 {[%clk 0:01:24.7]} 28... b5 {[%clk 0:01:57.1]} 29. Rxf6
{[%clk 0:01:13.9]} 29... bxc4+ {[%clk 0:01:54.5]} 30. Bxc4 {[%clk 0:01:14.8]}
30... Rb8+ {[%clk 0:01:41.1]} 31. Ka4 {[%clk 0:00:48.9]} 31... Rdb2 {[%clk
0:01:30.2]} 32. Ka3 {[%clk 0:00:33]} 32... R2b7 {[%clk 0:01:24.4]} 33. Rxf7
{[%clk 0:00:32.2]} 33... Rxf7 {[%clk 0:01:25.3]} 34. Bxf7+ {[%clk 0:00:32.4]}
34... Kxf7 {[%clk 0:01:26.2]} 35. Rxh7+ {[%clk 0:00:32.3]} 35... Kf6 {[%clk
0:01:27.1]} 36. Rd7 {[%clk 0:00:30.5]} 36... Ke6 {[%clk 0:01:27]} 37. Rg7 {[%clk
0:00:30.1]} 37... Kf6 {[%clk 0:01:26.4]} 38. Rc7 {[%clk 0:00:29.7]} 38... Rb1
{[%clk 0:01:22.8]} 39. Rd7 {[%clk 0:00:26.4]} 39... Ke6 {[%clk 0:01:18.6]} 40.
Rd3 {[%clk 0:00:25.6]} 40... Rc1 {[%clk 0:01:17.9]} 41. Kb2 {[%clk 0:00:25.1]}
41... Rf1 {[%clk 0:01:17]} 42. c4 {[%clk 0:00:25.6]} 42... Rxf2+ {[%clk
0:01:16.8]} 43. Kb3 {[%clk 0:00:26.2]} 43... g5 {[%clk 0:01:13.2]} 44. c5 {[%clk
0:00:26.3]} 44... Rf1 {[%clk 0:01:13.5]} 45. Kb4 {[%clk 0:00:24.5]} 45... Rh1
{[%clk 0:01:08.8]} 46. Kb5 {[%clk 0:00:22.2]} 46... Rh3 {[%clk 0:01:08.3]} 47.
c6 {[%clk 0:00:18.6]} 47... Rh1 {[%clk 0:01:05.3]} 48. Kb6 {[%clk 0:00:15.4]}
48... Rb1+ {[%clk 0:01:05.2]} 49. Kc7 {[%clk 0:00:15.6]} 49... Rc1 {[%clk
0:01:04.9]} 50. Kb7 {[%clk 0:00:15.2]} 50... Rb1+ {[%clk 0:01:05.2]} 51. Kc8
{[%clk 0:00:15.6]} 51... Rc1 {[%clk 0:01:05.6]} 52. c7 {[%clk 0:00:16.2]} 52...
Rh1 {[%clk 0:01:00.3]} 53. Rb3 {[%clk 0:00:11.7]} 53... Rh7 {[%clk 0:00:31.3]}
54. Kb8 {[%clk 0:00:11.2]} 1-0